[Event "9th RTU Open 2019"]
[Site "Riga"]
[Date "2019.08.08"]
[Round "6.25"]
[White "Ioannidis, Evgenios"]
[Black "Mohammad Nubairshah Shaikh"]
[Result "1/2-1/2"]
[ECO "D15"]
[WhiteElo "2378"]
[BlackElo "2449"]
[Annotator "NA"]
[PlyCount "120"]
[EventDate "2019.08.05"]
[EventType "swiss"]
[EventCountry "LAT"]
[SourceTitle "playchess.com"]
[Source "ChessBase"]
[SourceQuality "1"]
[TimeControl "5400+30"]

1. d4 {[%emt 0:01:26]} d5 {[%emt 0:02:53]} 2. c4 {[%emt 0:00:18]} c6 {[%emt 0:00:01]} 3. Nf3 {[%emt 0:00:20]} Nf6 {[%emt 0:00:02]} 4. Nc3 {[%emt 0:00:26]} dxc4 {[%emt 0:00:08]} 5. e4 {[%emt 0:01:02]} b5 {[%emt 0:00:02]} 6. Be2 {[%emt 0:00:30]} e6 {[%emt 0:07:48]} 7. O-O {[%emt 0:00:58]} Be7 {[%emt 0:01:24]} 8. a4 {[%emt 0:01:20]} b4 {[%emt 0:06:49]} 9. e5 {[%emt 0:00:17]} bxc3 {[%emt 0:03:09]} 10. exf6 {[%emt 0:00:09]} Bxf6 {[%emt 0:01:11]} 11. bxc3 {[%emt 0:00:09]} Ba6 {[%emt 0:00:07]} 12. Nd2 {[%emt 0:04:36]} O-O {[%emt 0:05:08]} 13. Bxc4 {[%emt 0:16:12]} Bxc4 {[%emt 0:10:43]} 14. Nxc4 {[%emt 0:00:44]} Nd7 {[%emt 0:00:01]} 15. Ba3 {[%emt 0:06:54]} Be7 {[%emt 0:00:02]} 16. Bxe7 {[%emt 0:05:03]} Qxe7 {[%emt 0:00:03]} 17. Rb1 {[%emt 0:00:48]} Rab8 {[%emt 0:10:00]} 18. Qe2 {[%emt 0:06:52]} Qg5 {[%emt 0:06:52]} 19. Ne5 {[%emt 0:03:16]} Nxe5 {[%emt 0:09:56]} 20. Qxe5 {[%emt 0:01:28]} Qxe5 {[%emt 0:01:58]} 21. dxe5 {[%emt 0:00:04]} g5 {[%emt 0:00:31]} 22. h4 {[%emt 0:00:26]} gxh4 {[%emt 0:01:47]} 23. Rfd1 {[%emt 0:01:11]} Rxb1 {[%emt 0:04:58]} 24. Rxb1 {[%emt 0:00:05]} Rd8 {[%emt 0:00:03]} 25. Rb7 {[%emt 0:00:32]} a5 {[%emt 0:17:46]} 26. Rc7 {[%emt 0:00:04]} Rd1+ {[%emt 0:02:22]} 27. Kh2 {[%emt 0:00:05]} Ra1 {[%emt 0:00:03]} 28. Rxc6 {[%emt 0:00:04]} Rxa4 {[%emt 0:00:02]} 29. Ra6 {[%emt 0:02:10]} Rf4 {[%emt 0:03:22]} 30. Rxa5 {[%emt 0:05:47]} Rxf2 {[%emt 0:00:02]} 31. Ra4 {[%emt 0:01:17]} Rc2 {[%emt 0:02:06]} 32. Rg4+ {[%emt 0:00:09]} Kh8 {[%emt 0:00:14]} 33. Rf4 {[%emt 0:00:04]} Kg7 {[%emt 0:00:04]} 34. Rg4+ {[%emt 0:00:03]} Kf8 {[%emt 0:00:55]} 35. Rxh4 {[%emt 0:00:05]} Rxc3 {[%emt 0:00:02]} 36. Rxh7 {[%emt 0:00:05]} Re3 {[%emt 0:03:47]} 37. Rh5 {[%emt 0:00:05]} Kg7 {[%emt 0:00:02]} 38. g4 {[%emt 0:00:10]} Kg6 {[%emt 0:00:03]} 39. Kg2 {[%emt 0:00:07]} Rb3 {[%emt 0:00:21]} 40. Kf2 {[%emt 0:00:14]} Ra3 {[%emt 0:01:23]} 41. Kg2 {[%emt 0:00:04]} Rc3 {[%emt 0:00:01]} 42. Kf2 {[%emt 0:00:05]} Rc5 {[%emt 0:00:02]} 43. Kf3 {[%emt 0:00:10]} Rc1 {[%emt 0:00:17]} 44. Rh8 {[%emt 0:01:07]} Rf1+ {[%emt 0:00:05]} 45. Kg2 {[%emt 0:00:05]} Re1 {[%emt 0:00:47]} 46. Rh5 {[%emt 0:00:04]} Ra1 {[%emt 0:00:49]} 47. Kf3 {[%emt 0:00:07]} Rg1 {[%emt 0:00:32]} 48. Rh8 {[%emt 0:00:08]} Rf1+ {[%emt 0:01:01]} 49. Kg2 {[%emt 0:00:04]} Rd1 {[%emt 0:00:22]} 50. Rh5 {[%emt 0:00:07]} Rd5 {[%emt 0:00:10]} 51. Kf3 {[%emt 0:00:04]} Rd8 {[%emt 0:00:32]} 52. Kf4 {[%emt 0:00:09]} Rd4+ {[%emt 0:00:02]} 53. Kf3 {[%emt 0:00:04]} Ra4 {[%emt 0:00:03]} 54. Rh8 {[%emt 0:00:12]} Ra3+ {[%emt 0:00:12]} 55. Kf4 {[%emt 0:00:05]} Ra4+ {[%emt 0:00:02]} 56. Kf3 {[%emt 0:00:03]} Rb4 {[%emt 0:00:12]} 57. Rh5 {[%emt 0:00:06]} Rb1 {[%emt 0:01:50]} 58. Rh8 {[%emt 0:00:15]} Rf1+ {[%emt 0:00:08]} 59. Kg2 {[%emt 0:00:40]} Ra1 {[%emt 0:00:20]} 60. Kf3 {[%emt 0:00:11]} Rf1+ {[%emt 0:00:04]} 1/2-1/2

[Event "9th RTU Open 2019"]
[Site "Riga"]
[Date "2019.08.08"]
[Round "6.26"]
[White "Grinev, Valeriy"]
[Black "Maltsevskaya, Aleksandra"]
[Result "1-0"]
[ECO "E97"]
[WhiteElo "2437"]
[BlackElo "2294"]
[Annotator "NA"]
[PlyCount "119"]
[EventDate "2019.08.05"]
[EventType "swiss"]
[EventCountry "LAT"]
[SourceTitle "playchess.com"]
[Source "ChessBase"]
[SourceQuality "1"]
[TimeControl "5400+30"]

1. c4 {[%emt 0:00:00]} Nf6 {[%emt 0:00:00]} 2. Nf3 {[%emt 0:00:00]} g6 {[%emt 0:00:00]} 3. Nc3 {[%emt 0:00:00]} Bg7 {[%emt 0:00:06]} 4. e4 {[%emt 0:00:09]} d6 {[%emt 0:00:06]} 5. d4 {[%emt 0:00:09]} O-O {[%emt 0:00:06]} 6. Be2 {[%emt 0:00:06]} e5 {[%emt 0:00:06]} 7. O-O {[%emt 0:00:09]} Nc6 {[%emt 0:00:04]} 8. d5 {[%emt 0:00:08]} Ne7 {[%emt 0:00:05]} 9. b4 {[%emt 0:00:25]} Nh5 {[%emt 0:00:05]} 10. g3 {[%emt 0:00:08]} f5 {[%emt 0:01:50]} 11. Ng5 {[%emt 0:00:10]} Nf6 {[%emt 0:00:06]} 12. Bf3 {[%emt 0:00:17]} c6 {[%emt 0:01:11]} 13. Bg2 {[%emt 0:00:10]} h6 {[%emt 0:08:32]} 14. Ne6 {[%emt 0:00:26]} Bxe6 {[%emt 0:00:05]} 15. dxe6 {[%emt 0:00:12]} fxe4 {[%emt 0:00:12]} 16. b5 {[%emt 0:00:43]} d5 {[%emt 0:05:56]} 17. cxd5 {[%emt 0:06:18]} cxd5 {[%emt 0:00:35]} 18. Qb3 {[%emt 0:00:17]} Qb6 {[%emt 0:09:02]} 19. Ba3 {[%emt 0:01:22]} Rae8 {[%emt 0:00:05]} 20. Bxe7 {[%emt 0:01:42]} Rxe7 {[%emt 0:00:06]} 21. Nxd5 {[%emt 0:00:09]} Nxd5 {[%emt 0:00:04]} 22. Qxd5 {[%emt 0:00:10]} Rd8 {[%emt 0:02:50]} 23. Qxe4 {[%emt 0:00:40]} Qxe6 {[%emt 0:00:54]} 24. Rfd1 {[%emt 0:01:49]} Rxd1+ {[%emt 0:05:53]} 25. Rxd1 {[%emt 0:01:22]} Kh7 {[%emt 0:00:09]} 26. Qa4 {[%emt 0:08:31]} Qb6 {[%emt 0:07:17]} 27. Be4 {[%emt 0:01:51]} Rf7 {[%emt 0:04:17]} 28. Qc2 {[%emt 0:01:57]} Bf8 {[%emt 0:02:46]} 29. Kg2 {[%emt 0:01:39]} Kg7 {[%emt 0:09:06]} 30. Rd5 {[%emt 0:01:09]} Qf6 {[%emt 0:00:42]} 31. Qb2 {[%emt 0:01:37]} Bd6 {[%emt 0:00:40]} 32. Qd2 {[%emt 0:22:25]} Bf8 {[%emt 0:05:37]} 33. Qe2 {[%emt 0:00:24]} b6 {[%emt 0:01:00]} 34. Bf3 {[%emt 0:00:13]} Bd6 {[%emt 0:00:07]} 35. h4 {[%emt 0:02:04]} Re7 {[%emt 0:05:56]} 36. Qe4 {[%emt 0:01:18]} Bc5 {[%emt 0:03:51]} 37. Rd8 {[%emt 0:01:05]} Rf7 {[%emt 0:00:05]} 38. Re8 {[%emt 0:04:35]} Re7 {[%emt 0:00:50]} 39. Rc8 {[%emt 0:00:45]} Qf5 {[%emt 0:06:33]} 40. Rd8 {[%emt 0:13:22]} Qxe4 {[%emt 0:00:15]} 41. Bxe4 {[%emt 0:00:09]} Rf7 {[%emt 0:01:17]} 42. f3 {[%emt 0:00:08]} Rc7 {[%emt 0:00:12]} 43. Bd5 {[%emt 0:03:02]} Be7 {[%emt 0:04:11]} 44. Rg8+ {[%emt 0:00:07]} Kh7 {[%emt 0:00:04]} 45. Re8 {[%emt 0:00:49]} Kg7 {[%emt 0:00:22]} 46. Kh3 {[%emt 0:00:16]} Bf6 {[%emt 0:01:14]} 47. a4 {[%emt 0:04:40]} Rd7 {[%emt 0:02:23]} 48. Be4 {[%emt 0:00:55]} Kf7 {[%emt 0:02:58]} 49. Rc8 {[%emt 0:00:11]} Kg7 {[%emt 0:00:05]} 50. g4 {[%emt 0:00:16]} g5 {[%emt 0:02:43]} 51. h5 {[%emt 0:00:59]} Be7 {[%emt 0:00:52]} 52. Kg2 {[%emt 0:00:19]} Bb4 {[%emt 0:05:24]} 53. Bf5 {[%emt 0:01:51]} Rf7 {[%emt 0:01:37]} 54. Be6 {[%emt 0:01:27]} Re7 {[%emt 0:00:11]} 55. Rg8+ {[%emt 0:00:13]} Kh7 {[%emt 0:00:07]} 56. Rg6 {[%emt 0:00:04]} Rg7 {[%emt 0:06:08]} 57. Rf6 {[%emt 0:00:10]} Rc7 {[%emt 0:00:34]} 58. Bf5+ {[%emt 0:00:11]} Kg7 {[%emt 0:00:06]} 59. Rg6+ {[%emt 0:00:10]} Kf7 {[%emt 0:01:02]} 60. Rxh6 {[%emt 0:00:09]} 1-0

[Event "9th RTU Open 2019"]
[Site "Riga"]
[Date "2019.08.08"]
[Round "6.27"]
[White "Haria, Ravi"]
[Black "Heinemann, Josefine"]
[Result "1-0"]
[ECO "C47"]
[WhiteElo "2430"]
[BlackElo "2255"]
[Annotator "NA"]
[PlyCount "133"]
[EventDate "2019.08.05"]
[EventType "swiss"]
[EventCountry "LAT"]
[SourceTitle "playchess.com"]
[Source "ChessBase"]
[SourceQuality "1"]
[TimeControl "5400+30"]

1. e4 {[%emt 0:00:00]} e5 {[%emt 0:00:00]} 2. Nf3 {[%emt 0:00:27]} Nc6 {[%emt 0:00:05]} 3. Nc3 {[%emt 0:03:13]} Nf6 {[%emt 0:00:22]} 4. d4 {[%emt 0:00:20]} exd4 {[%emt 0:00:09]} 5. Nxd4 {[%emt 0:00:06]} Bb4 {[%emt 0:00:16]} 6. Nxc6 {[%emt 0:00:32]} bxc6 {[%emt 0:00:05]} 7. Bd3 {[%emt 0:00:08]} d5 {[%emt 0:00:37]} 8. exd5 {[%emt 0:00:56]} cxd5 {[%emt 0:00:06]} 9. O-O {[%emt 0:00:23]} O-O {[%emt 0:00:04]} 10. h3 {[%emt 0:00:05]} c6 {[%emt 0:03:19]} 11. Qf3 {[%emt 0:00:57]} Re8 {[%emt 0:02:50]} 12. Bg5 {[%emt 0:09:32]} h6 {[%emt 0:03:22]} 13. Bh4 {[%emt 0:06:02]} Rb8 {[%emt 0:04:42]} 14. Rfe1 {[%emt 0:04:39]} Be6 {[%emt 0:02:34]} 15. a3 {[%emt 0:02:54]} Be7 {[%emt 0:04:05]} 16. b3 {[%emt 0:17:06]} Nh7 {[%emt 0:09:49]} 17. Bxe7 {[%emt 0:03:54]} Qxe7 {[%emt 0:03:18]} 18. Ne2 {[%emt 0:01:21]} Bd7 {[%emt 0:05:41]} 19. b4 {[%emt 0:11:29]} Ng5 {[%emt 0:03:26]} 20. Qg3 {[%emt 0:01:29]} c5 {[%emt 0:03:10]} 21. Nc3 {[%emt 0:10:12]} Be6 {[%emt 0:09:48]} 22. Nxd5 {[%emt 0:04:56]} Qb7 {[%emt 0:02:21]} 23. Nc7 {[%emt 0:00:56]} Rec8 {[%emt 0:02:37]} 24. Nxe6 {[%emt 0:03:30]} Nxe6 {[%emt 0:00:05]} 25. Rab1 {[%emt 0:02:20]} Qd7 {[%emt 0:03:46]} 26. Bf5 {[%emt 0:01:05]} Rb6 {[%emt 0:03:34]} 27. Rbd1 {[%emt 0:04:38]} Qe7 {[%emt 0:02:21]} 28. c3 {[%emt 0:02:28]} g6 {[%emt 0:02:55]} 29. Qg4 {[%emt 0:02:13]} h5 {[%emt 0:02:15]} 30. Qg3 {[%emt 0:00:33]} Qf6 {[%emt 0:01:37]} 31. Bxe6 {[%emt 0:00:51]} Rxe6 {[%emt 0:00:07]} 32. b5 {[%emt 0:00:45]} Qe7 {[%emt 0:02:14]} 33. Rxe6 {[%emt 0:01:00]} Qxe6 {[%emt 0:01:19]} 34. Qd3 {[%emt 0:01:04]} Qb6 {[%emt 0:03:52]} 35. a4 {[%emt 0:02:04]} Qa5 {[%emt 0:03:21]} 36. Qc4 {[%emt 0:00:12]} Qc7 {[%emt 0:00:06]} 37. g3 {[%emt 0:01:16]} Qe7 {[%emt 0:01:49]} 38. h4 {[%emt 0:01:18]} Kg7 {[%emt 0:01:02]} 39. a5 {[%emt 0:00:13]} Qf6 {[%emt 0:02:47]} 40. Rd5 {[%emt 0:01:15]} Qe6 {[%emt 0:00:20]} 41. Qd3 {[%emt 0:00:39]} Rc7 {[%emt 0:01:44]} 42. a6 {[%emt 0:00:15]} c4 {[%emt 0:01:04]} 43. Qd4+ {[%emt 0:00:17]} Qf6 {[%emt 0:00:40]} 44. Qd2 {[%emt 0:01:45]} Re7 {[%emt 0:00:45]} 45. Kg2 {[%emt 0:00:25]} Kh7 {[%emt 0:02:21]} 46. Qd4 {[%emt 0:00:34]} Qxd4 {[%emt 0:00:43]} 47. Rxd4 {[%emt 0:00:37]} Re5 {[%emt 0:00:06]} 48. Rxc4 {[%emt 0:00:28]} Rxb5 {[%emt 0:00:07]} 49. Rc7 {[%emt 0:00:02]} Kg7 {[%emt 0:00:04]} 50. Rxa7 {[%emt 0:00:35]} Rc5 {[%emt 0:00:04]} 51. Rb7 {[%emt 0:00:04]} Rxc3 {[%emt 0:00:05]} 52. a7 {[%emt 0:00:03]} Ra3 {[%emt 0:00:04]} 53. Kf1 {[%emt 0:00:06]} Kf6 {[%emt 0:00:37]} 54. Ke2 {[%emt 0:00:47]} Ke6 {[%emt 0:00:06]} 55. Kd2 {[%emt 0:00:43]} f6 {[%emt 0:00:05]} 56. Kc2 {[%emt 0:01:27]} g5 {[%emt 0:01:43]} 57. Kb2 {[%emt 0:00:06]} Ra6 {[%emt 0:00:07]} 58. Kb3 {[%emt 0:01:10]} Kf5 {[%emt 0:00:10]} 59. Kb4 {[%emt 0:00:28]} Kg4 {[%emt 0:00:21]} 60. Kb5 {[%emt 0:00:29]} Ra1 {[%emt 0:00:15]} 61. Rf7 {[%emt 0:00:35]} gxh4 {[%emt 0:01:15]} 62. gxh4 {[%emt 0:00:09]} f5 {[%emt 0:01:38]} 63. Kb6 {[%emt 0:00:38]} f4 {[%emt 0:00:57]} 64. Rf8 {[%emt 0:00:15]} Kf3 {[%emt 0:02:21]} 65. a8=Q+ {[%emt 0:00:16]} Rxa8 {[%emt 0:00:03]} 66. Rxa8 {[%emt 0:00:06]} Kxf2 {[%emt 0:00:02]} 67. Rh8 {[%emt 0:00:13]} 1-0

[Event "9th RTU Open 2019"]
[Site "Riga"]
[Date "2019.08.08"]
[Round "6.28"]
[White "Larkin, Vladyslav"]
[Black "Korchmar, Vasiliy"]
[Result "0-1"]
[ECO "D00"]
[WhiteElo "2385"]
[BlackElo "2424"]
[Annotator "NA"]
[PlyCount "102"]
[EventDate "2019.08.05"]
[EventType "swiss"]
[EventCountry "LAT"]
[SourceTitle "playchess.com"]
[Source "ChessBase"]
[SourceQuality "1"]
[TimeControl "5400+30"]

1. d4 {[%emt 0:00:00]} Nf6 {[%emt 0:04:47]} 2. Bf4 {[%emt 0:00:00]} d5 {[%emt 0:00:27]} 3. e3 {[%emt 0:00:00]} c5 {[%emt 0:00:06]} 4. dxc5 {[%emt 0:00:17]} Nc6 {[%emt 0:01:11]} 5. Bb5 {[%emt 0:00:05]} e6 {[%emt 0:01:05]} 6. b4 {[%emt 0:00:13]} a5 {[%emt 0:00:18]} 7. c3 {[%emt 0:00:05]} Bd7 {[%emt 0:00:09]} 8. Nf3 {[%emt 0:04:43]} axb4 {[%emt 0:02:36]} 9. Bxc6 {[%emt 0:00:04]} Bxc6 {[%emt 0:00:20]} 10. cxb4 {[%emt 0:00:04]} b6 {[%emt 0:03:21]} 11. O-O {[%emt 0:01:37]} bxc5 {[%emt 0:00:08]} 12. bxc5 {[%emt 0:00:04]} Bb5 {[%emt 0:01:59]} 13. Re1 {[%emt 0:00:05]} Bxc5 {[%emt 0:00:11]} 14. Nc3 {[%emt 0:00:21]} Ba6 {[%emt 0:04:07]} 15. Qa4+ {[%emt 0:04:47]} Nd7 {[%emt 0:07:21]} 16. Nb5 {[%emt 0:09:10]} Bxb5 {[%emt 0:02:30]} 17. Qxb5 {[%emt 0:00:07]} O-O {[%emt 0:00:09]} 18. a4 {[%emt 0:10:08]} Ra5 {[%emt 0:01:50]} 19. Qd3 {[%emt 0:11:37]} Qa8 {[%emt 0:03:22]} 20. Ng5 {[%emt 0:25:42]} g6 {[%emt 0:05:40]} 21. e4 {[%emt 0:00:28]} Rxa4 {[%emt 0:04:05]} 22. Qh3 {[%emt 0:00:30]} h5 {[%emt 0:00:14]} 23. Rxa4 {[%emt 0:05:55]} Qxa4 {[%emt 0:00:01]} 24. Qg3 {[%emt 0:00:23]} Nf6 {[%emt 0:13:30]} 25. exd5 {[%emt 0:06:58]} exd5 {[%emt 0:00:32]} 26. h3 {[%emt 0:00:04]} Re8 {[%emt 0:04:24]} 27. Rxe8+ {[%emt 0:08:39]} Qxe8 {[%emt 0:00:17]} 28. Qc3 {[%emt 0:00:53]} Qe7 {[%emt 0:00:59]} 29. Be5 {[%emt 0:01:24]} Nd7 {[%emt 0:01:26]} 30. Bf4 {[%emt 0:00:15]} Qe2 {[%emt 0:08:03]} 31. Bg3 {[%emt 0:00:26]} Qc4 {[%emt 0:00:14]} 32. Qe1 {[%emt 0:00:27]} Nf6 {[%emt 0:05:28]} 33. Qe5 {[%emt 0:02:27]} Bd4 {[%emt 0:04:34]} 34. Qb8+ {[%emt 0:00:04]} Kg7 {[%emt 0:00:01]} 35. Kh2 {[%emt 0:00:08]} Qc6 {[%emt 0:02:38]} 36. Nf3 {[%emt 0:08:28]} Bc3 {[%emt 0:00:17]} 37. Ne5 {[%emt 0:01:11]} Qe6 {[%emt 0:00:07]} 38. Qc7 {[%emt 0:00:08]} Ne4 {[%emt 0:06:49]} 39. Nd3 {[%emt 0:00:55]} Bf6 {[%emt 0:00:47]} 40. Nf4 {[%emt 0:00:37]} Qf5 {[%emt 0:00:16]} 41. Nd3 {[%emt 0:00:13]} h4 {[%emt 0:01:41]} 42. Bf4 {[%emt 0:00:10]} g5 {[%emt 0:00:16]} 43. g4 {[%emt 0:00:49]} Qe6 {[%emt 0:02:31]} 44. Be5 {[%emt 0:00:46]} Nxf2 {[%emt 0:00:40]} 45. Bxf6+ {[%emt 0:00:14]} Qxf6 {[%emt 0:00:01]} 46. Ne5 {[%emt 0:00:41]} Ne4 {[%emt 0:00:02]} 47. Nd3 {[%emt 0:00:13]} Qf3 {[%emt 0:03:25]} 48. Qe5+ {[%emt 0:00:13]} Kg8 {[%emt 0:00:11]} 49. Qb8+ {[%emt 0:01:10]} Kh7 {[%emt 0:00:05]} 50. Qc7 {[%emt 0:00:28]} Ng3 {[%emt 0:02:48]} 51. Qc1 {[%emt 0:00:32]} Qxd3 {[%emt 0:00:26]} 0-1

[Event "9th RTU Open 2019"]
[Site "Riga"]
[Date "2019.08.08"]
[Round "6.29"]
[White "Sergienko, Sergey"]
[Black "Gokerkan, Cem Kaan"]
[Result "0-1"]
[ECO "C00"]
[WhiteElo "2320"]
[BlackElo "2415"]
[Annotator "NA"]
[PlyCount "74"]
[EventDate "2019.08.05"]
[EventType "swiss"]
[EventCountry "LAT"]
[SourceTitle "playchess.com"]
[Source "ChessBase"]
[SourceQuality "1"]
[TimeControl "5400+30"]

1. Nf3 {[%emt 0:00:00]} c5 {[%emt 0:07:31]} 2. e4 {[%emt 0:00:00]} e6 {[%emt 0:00:37]} 3. d3 {[%emt 0:02:29]} Nc6 {[%emt 0:00:44]} 4. g3 {[%emt 0:00:10]} Nf6 {[%emt 0:07:57]} 5. Bg2 {[%emt 0:00:52]} d5 {[%emt 0:00:14]} 6. Qe2 {[%emt 0:00:23]} Be7 {[%emt 0:00:18]} 7. O-O {[%emt 0:00:22]} b5 {[%emt 0:02:36]} 8. e5 {[%emt 0:11:48]} Nd7 {[%emt 0:00:52]} 9. h4 {[%emt 0:00:10]} a5 {[%emt 0:01:31]} 10. Bf4 {[%emt 0:07:33]} a4 {[%emt 0:01:42]} 11. Re1 {[%emt 0:01:31]} Ba6 {[%emt 0:07:53]} 12. a3 {[%emt 0:16:27]} Rc8 {[%emt 0:03:43]} 13. Nc3 {[%emt 0:08:11]} h6 {[%emt 0:10:11]} 14. Qd2 {[%emt 0:07:10]} Nb6 {[%emt 0:02:21]} 15. h5 {[%emt 0:10:13]} d4 {[%emt 0:06:38]} 16. Ne4 {[%emt 0:00:53]} Nd5 {[%emt 0:00:07]} 17. g4 {[%emt 0:02:20]} Qa5 {[%emt 0:08:14]} 18. Qc1 {[%emt 0:00:29]} c4 {[%emt 0:01:26]} 19. dxc4 {[%emt 0:02:18]} bxc4 {[%emt 0:00:10]} 20. Bg3 {[%emt 0:01:06]} d3 {[%emt 0:06:34]} 21. cxd3 {[%emt 0:07:53]} cxd3 {[%emt 0:01:29]} 22. Qd1 {[%emt 0:00:04]} O-O {[%emt 0:01:24]} 23. g5 {[%emt 0:07:31]} hxg5 {[%emt 0:00:38]} 24. Nexg5 {[%emt 0:00:06]} Nd4 {[%emt 0:00:53]} 25. Nxd4 {[%emt 0:02:59]} Bxg5 {[%emt 0:00:08]} 26. Qg4 {[%emt 0:00:50]} Bh6 {[%emt 0:02:22]} 27. Be4 {[%emt 0:05:19]} d2 {[%emt 0:00:37]} 28. Red1 {[%emt 0:00:15]} Rc4 {[%emt 0:03:57]} 29. Bd3 {[%emt 0:00:43]} Rc1 {[%emt 0:01:08]} 30. b4 {[%emt 0:00:52]} axb3 {[%emt 0:02:01]} 31. Nxb3 {[%emt 0:00:09]} Rxa1 {[%emt 0:01:41]} 32. Rxa1 {[%emt 0:01:16]} Qc3 {[%emt 0:01:04]} 33. Bxa6 {[%emt 0:00:49]} Qxb3 {[%emt 0:00:02]} 34. Be2 {[%emt 0:01:08]} Nc3 {[%emt 0:00:31]} 35. Rf1 {[%emt 0:00:21]} Nxe2+ {[%emt 0:00:38]} 36. Qxe2 {[%emt 0:00:09]} Rc8 {[%emt 0:00:28]} 37. Qa6 {[%emt 0:01:16]} Qc4 {[%emt 0:00:16]} 0-1

[Event "9th RTU Open 2019"]
[Site "Riga"]
[Date "2019.08.08"]
[Round "6.30"]
[White "Smirnov, Artem"]
[Black "Shailesh, Dravid"]
[Result "0-1"]
[ECO "E90"]
[WhiteElo "2421"]
[BlackElo "2254"]
[Annotator "NA"]
[PlyCount "106"]
[EventDate "2019.08.05"]
[EventType "swiss"]
[EventCountry "LAT"]
[SourceTitle "playchess.com"]
[Source "ChessBase"]
[SourceQuality "1"]
[TimeControl "5400+30"]

1. d4 {[%emt 0:00:00]} Nf6 {[%emt 0:02:37]} 2. c4 {[%emt 0:00:00]} g6 {[%emt 0:01:03]} 3. Nc3 {[%emt 0:00:00]} Bg7 {[%emt 0:00:04]} 4. e4 {[%emt 0:00:00]} d6 {[%emt 0:00:03]} 5. h3 {[%emt 0:00:00]} O-O {[%emt 0:00:17]} 6. Be3 {[%emt 0:00:03]} Na6 {[%emt 0:00:31]} 7. Nf3 {[%emt 0:00:40]} Qe8 {[%emt 0:02:03]} 8. g4 {[%emt 0:11:38]} c5 {[%emt 0:02:57]} 9. Qd2 {[%emt 0:07:37]} cxd4 {[%emt 0:01:23]} 10. Nxd4 {[%emt 0:00:13]} Nc5 {[%emt 0:00:29]} 11. Bg2 {[%emt 0:02:40]} a6 {[%emt 0:01:35]} 12. O-O {[%emt 0:04:53]} Rb8 {[%emt 0:02:03]} 13. b4 {[%emt 0:02:03]} Na4 {[%emt 0:03:38]} 14. Nce2 {[%emt 0:08:28]} e5 {[%emt 0:09:34]} 15. Nb3 {[%emt 0:02:50]} Be6 {[%emt 0:02:01]} 16. Rac1 {[%emt 0:10:09]} b5 {[%emt 0:08:34]} 17. Na5 {[%emt 0:21:18]} bxc4 {[%emt 0:04:55]} 18. f4 {[%emt 0:04:46]} exf4 {[%emt 0:02:59]} 19. Bxf4 {[%emt 0:00:08]} Qb5 {[%emt 0:01:57]} 20. Nd4 {[%emt 0:06:13]} Qb6 {[%emt 0:06:26]} 21. Be3 {[%emt 0:06:37]} c3 {[%emt 0:05:55]} 22. Qf2 {[%emt 0:00:10]} Qc7 {[%emt 0:02:35]} 23. Ndc6 {[%emt 0:00:18]} Rxb4 {[%emt 0:10:07]} 24. Nxb4 {[%emt 0:01:03]} Qxa5 {[%emt 0:00:05]} 25. Nc6 {[%emt 0:03:51]} Qc7 {[%emt 0:00:05]} 26. Bd4 {[%emt 0:03:19]} Nxg4 {[%emt 0:03:39]} 27. hxg4 {[%emt 0:00:19]} Qxc6 {[%emt 0:00:04]} 28. Bxg7 {[%emt 0:00:36]} Kxg7 {[%emt 0:00:02]} 29. Qd4+ {[%emt 0:01:14]} Kg8 {[%emt 0:00:08]} 30. e5 {[%emt 0:02:30]} d5 {[%emt 0:00:01]} 31. Rf4 {[%emt 0:00:18]} Nb6 {[%emt 0:02:41]} 32. Rxc3 {[%emt 0:00:19]} Nc4 {[%emt 0:00:07]} 33. g5 {[%emt 0:01:21]} Rb8 {[%emt 0:00:40]} 34. Rb3 {[%emt 0:00:20]} Rxb3 {[%emt 0:03:54]} 35. axb3 {[%emt 0:00:01]} Na5 {[%emt 0:00:11]} 36. Qe3 {[%emt 0:01:23]} Qc2 {[%emt 0:00:55]} 37. Bf1 {[%emt 0:00:28]} Qxb3 {[%emt 0:00:42]} 38. Qxb3 {[%emt 0:00:40]} Nxb3 {[%emt 0:00:04]} 39. Bxa6 {[%emt 0:00:27]} Nc5 {[%emt 0:00:08]} 40. Bb5 {[%emt 0:00:21]} Ne4 {[%emt 0:00:12]} 41. Kf1 {[%emt 0:00:06]} Nxg5 {[%emt 0:00:00]} 42. Ke2 {[%emt 0:00:42]} Kg7 {[%emt 0:01:29]} 43. Ke3 {[%emt 0:00:13]} h5 {[%emt 0:00:31]} 44. Bc6 {[%emt 0:00:35]} Ne4 {[%emt 0:01:56]} 45. Kd4 {[%emt 0:00:50]} Ng3 {[%emt 0:00:10]} 46. Kc5 {[%emt 0:00:47]} g5 {[%emt 0:01:11]} 47. Ra4 {[%emt 0:00:10]} Ne4+ {[%emt 0:05:32]} 48. Kd4 {[%emt 0:00:03]} g4 {[%emt 0:00:31]} 49. Ra1 {[%emt 0:01:06]} g3 {[%emt 0:01:05]} 50. Bxd5 {[%emt 0:00:09]} Bxd5 {[%emt 0:00:01]} 51. Kxd5 {[%emt 0:00:05]} Ng5 {[%emt 0:02:38]} 52. Rh1 {[%emt 0:01:21]} Kg6 {[%emt 0:00:59]} 53. Kc4 {[%emt 0:00:28]} Nf3 {[%emt 0:00:25]} 0-1

[Event "9th RTU Open 2019"]
[Site "Riga"]
[Date "2019.08.08"]
[Round "6.31"]
[White "Siniauski, Artsiom"]
[Black "Kopylov, Michael"]
[Result "1/2-1/2"]
[ECO "B01"]
[WhiteElo "2205"]
[BlackElo "2415"]
[Annotator "NA"]
[PlyCount "36"]
[EventDate "2019.08.05"]
[EventType "swiss"]
[EventCountry "LAT"]
[SourceTitle "playchess.com"]
[Source "ChessBase"]
[SourceQuality "1"]
[TimeControl "5400+30"]

1. e4 {[%emt 0:00:00]} d5 {[%emt 0:00:00]} 2. exd5 {[%emt 0:00:00]} Qxd5 {[%emt 0:00:00]} 3. Nc3 {[%emt 0:00:05]} Qd6 {[%emt 0:00:02]} 4. g3 {[%emt 0:00:50]} Nf6 {[%emt 0:00:30]} 5. Bg2 {[%emt 0:00:19]} Bg4 {[%emt 0:00:50]} 6. Nge2 {[%emt 0:00:23]} c6 {[%emt 0:05:32]} 7. b4 {[%emt 0:00:53]} e6 {[%emt 0:03:55]} 8. Rb1 {[%emt 0:01:41]} Be7 {[%emt 0:06:03]} 9. O-O {[%emt 0:00:19]} O-O {[%emt 0:01:50]} 10. d3 {[%emt 0:01:01]} Nd5 {[%emt 0:06:30]} 11. Nxd5 {[%emt 0:05:05]} cxd5 {[%emt 0:04:07]} 12. Be3 {[%emt 0:02:36]} Nc6 {[%emt 0:04:49]} 13. b5 {[%emt 0:04:51]} Ne5 {[%emt 0:04:11]} 14. h3 {[%emt 0:08:28]} Bh5 {[%emt 0:18:21]} 15. g4 {[%emt 0:05:04]} Bg6 {[%emt 0:02:07]} 16. Bf4 {[%emt 0:00:28]} Qc7 {[%emt 0:05:03]} 17. Nd4 {[%emt 0:22:22]} b6 {[%emt 0:14:18]} 18. Bg3 {[%emt 0:08:55]} Bd6 {[%emt 0:04:06]} 1/2-1/2